[Event "*** Titled Tuesday Blitz"]
[Site "Chess.com"]
[Date "2020.12.01"]
[Round "7"]
[White "KonstantinB_1983"]
[Black "dpopadic"]
[Result "1/2-1/2"]
[WhiteElo "2505"]
[BlackElo "2404"]
[TimeControl "180+1"]
[EndTime "11:18:14 PST"]
[Termination "Game drawn by repetition"]

1. Nf3 {[%clk 0:03:00.9]} 1... Nf6 {[%clk 0:02:58.8]} 2. c4 {[%clk 0:03:00.1]}
2... g6 {[%clk 0:02:58.8]} 3. b4 {[%clk 0:02:59]} 3... Bg7 {[%clk 0:02:58.7]} 4.
Bb2 {[%clk 0:02:59.3]} 4... O-O {[%clk 0:02:58.3]} 5. g3 {[%clk 0:02:58.6]} 5...
d6 {[%clk 0:02:58.5]} 6. Bg2 {[%clk 0:02:58.5]} 6... Nc6 {[%clk 0:02:57.4]} 7.
b5 {[%clk 0:02:57.7]} 7... Nb8 {[%clk 0:02:57.2]} 8. O-O {[%clk 0:02:55.7]} 8...
e5 {[%clk 0:02:56.7]} 9. d3 {[%clk 0:02:55.1]} 9... Nbd7 {[%clk 0:02:56.4]} 10.
a4 {[%clk 0:02:53.9]} 10... Nc5 {[%clk 0:02:56.1]} 11. Nc3 {[%clk 0:02:53.3]}
11... Rb8 {[%clk 0:02:55.1]} 12. Nd2 {[%clk 0:02:50.5]} 12... h6 {[%clk
0:02:54.3]} 13. Nb3 {[%clk 0:02:46.8]} 13... Nxb3 {[%clk 0:02:48.4]} 14. Qxb3
{[%clk 0:02:45.8]} 14... Be6 {[%clk 0:02:47.7]} 15. Qc2 {[%clk 0:02:39.5]} 15...
Qd7 {[%clk 0:02:47.6]} 16. Rfd1 {[%clk 0:02:37.4]} 16... Bh3 {[%clk 0:02:46.5]}
17. Bh1 {[%clk 0:02:36]} 17... Rfe8 {[%clk 0:02:44.9]} 18. a5 {[%clk 0:02:31.1]}
18... c6 {[%clk 0:02:33.4]} 19. a6 {[%clk 0:02:28.6]} 19... cxb5 {[%clk
0:02:20.2]} 20. axb7 {[%clk 0:02:24.8]} 20... bxc4 {[%clk 0:02:18.5]} 21. dxc4
{[%clk 0:02:23.5]} 21... Rxb7 {[%clk 0:02:17.5]} 22. Bxb7 {[%clk 0:02:16.6]}
22... Qxb7 {[%clk 0:02:17.3]} 23. e4 {[%clk 0:02:08.6]} 23... Bf8 {[%clk
0:02:10.5]} 24. Ba3 {[%clk 0:02:01.6]} 24... Qc6 {[%clk 0:01:59.4]} 25. Nd5
{[%clk 0:01:55.3]} 25... Nxd5 {[%clk 0:01:57.9]} 26. Rxd5 {[%clk 0:01:53.5]}
26... Be6 {[%clk 0:01:55.1]} 27. Rdd1 {[%clk 0:01:51.8]} 27... Rc8 {[%clk
0:01:43.5]} 28. Rac1 {[%clk 0:01:37.7]} 28... h5 {[%clk 0:01:42.8]} 29. Qd3
{[%clk 0:01:18.6]} 29... h4 {[%clk 0:01:35.4]} 30. c5 {[%clk 0:01:05.6]} 30...
dxc5 {[%clk 0:01:25.7]} 31. Qe3 {[%clk 0:01:04.4]} 31... hxg3 {[%clk 0:01:23.8]}
32. hxg3 {[%clk 0:01:03.5]} 32... a6 {[%clk 0:01:00.5]} 33. Rc3 {[%clk 0:01:01]}
33... Kh7 {[%clk 0:00:47.6]} 34. Qf3 {[%clk 0:00:46.8]} 34... Kg8 {[%clk
0:00:37.3]} 35. Rdc1 {[%clk 0:00:44.7]} 35... c4 {[%clk 0:00:36.5]} 36. Bxf8
{[%clk 0:00:43.1]} 36... Rxf8 {[%clk 0:00:36.2]} 37. Qf6 {[%clk 0:00:42.2]}
37... Qxe4 {[%clk 0:00:33.7]} 38. Re3 {[%clk 0:00:40.8]} 38... Qd4 {[%clk
0:00:26.7]} 39. Rxe5 {[%clk 0:00:34.8]} 39... Qd2 {[%clk 0:00:24.1]} 40. Ra1
{[%clk 0:00:26.6]} 40... Qd6 {[%clk 0:00:20.9]} 41. Re3 {[%clk 0:00:23]} 41...
Qc6 {[%clk 0:00:17.7]} 42. Rea3 {[%clk 0:00:20.5]} 42... Qd5 {[%clk 0:00:15.6]}
43. Re3 {[%clk 0:00:18.9]} 43... Bh3 {[%clk 0:00:15]} 44. Qf3 {[%clk 0:00:18.1]}
44... Qxf3 {[%clk 0:00:13.9]} 45. Rxf3 {[%clk 0:00:18]} 45... Ra8 {[%clk
0:00:13.8]} 46. Rc3 {[%clk 0:00:17.3]} 46... Be6 {[%clk 0:00:13.8]} 47. Ra5
{[%clk 0:00:17.5]} 47... Ra7 {[%clk 0:00:13.7]} 48. f4 {[%clk 0:00:17.4]} 48...
Kg7 {[%clk 0:00:13.5]} 49. Kf2 {[%clk 0:00:17.8]} 49... Kf6 {[%clk 0:00:13.6]}
50. Ke3 {[%clk 0:00:17.7]} 50... Ra8 {[%clk 0:00:13.5]} 51. Kd4 {[%clk
0:00:17.3]} 51... Rd8+ {[%clk 0:00:13.5]} 52. Ke4 {[%clk 0:00:16.9]} 52... Bf5+
{[%clk 0:00:09.2]} 53. Ke3 {[%clk 0:00:16.3]} 53... Re8+ {[%clk 0:00:08.2]} 54.
Kf2 {[%clk 0:00:15.3]} 54... Bd3 {[%clk 0:00:08.1]} 55. Rxa6+ {[%clk 0:00:14.4]}
55... Kf5 {[%clk 0:00:08.3]} 56. Ra5+ {[%clk 0:00:14.5]} 56... Kf6 {[%clk
0:00:07.9]} 57. Ra6+ {[%clk 0:00:13.8]} 57... Kf5 {[%clk 0:00:07.7]} 58. Ra5+
{[%clk 0:00:11.8]} 58... Kf6 {[%clk 0:00:07.2]} 59. Rc1 {[%clk 0:00:10.8]} 59...
Re2+ {[%clk 0:00:06.8]} 60. Kf3 {[%clk 0:00:10.5]} 60... Rb2 {[%clk 0:00:05.2]}
61. g4 {[%clk 0:00:10]} 61... Rb7 {[%clk 0:00:04.6]} 62. Ra6+ {[%clk 0:00:09.3]}
62... Kg7 {[%clk 0:00:04.6]} 63. Ke3 {[%clk 0:00:09]} 63... Re7+ {[%clk
0:00:04.4]} 64. Kf3 {[%clk 0:00:08.9]} 64... Rd7 {[%clk 0:00:04.3]} 65. Ke3
{[%clk 0:00:08.5]} 65... Re7+ {[%clk 0:00:04.2]} 66. Kf2 {[%clk 0:00:08.9]}
66... Re4 {[%clk 0:00:03.8]} 67. Kf3 {[%clk 0:00:08.8]} 67... Re7 {[%clk
0:00:04.4]} 68. Rg1 {[%clk 0:00:08.3]} 68... Rd7 {[%clk 0:00:03.3]} 69. Rc1
{[%clk 0:00:07.9]} 69... Re7 {[%clk 0:00:03.1]} 70. Rb6 {[%clk 0:00:07.6]} 70...
Re8 {[%clk 0:00:02.5]} 71. Rb4 {[%clk 0:00:05.5]} 71... Re7 {[%clk 0:00:02.4]}
72. Rb6 {[%clk 0:00:05]} 72... Rd7 {[%clk 0:00:02]} 73. Rb5 {[%clk 0:00:04.3]}
73... Re7 {[%clk 0:00:02]} 74. Re5 {[%clk 0:00:04.4]} 74... Rd7 {[%clk
0:00:02.5]} 75. Ke3 {[%clk 0:00:04.7]} 75... Rd8 {[%clk 0:00:03]} 76. Re7 {[%clk
0:00:04.2]} 76... Rd6 {[%clk 0:00:03.1]} 77. Re5 {[%clk 0:00:04.1]} 77... Rd8
{[%clk 0:00:03.3]} 78. g5 {[%clk 0:00:04.1]} 78... Rd7 {[%clk 0:00:03.4]} 79.
Ra1 {[%clk 0:00:03.9]} 79... Rb7 {[%clk 0:00:03.4]} 80. Rc1 {[%clk 0:00:03.4]}
80... Rd7 {[%clk 0:00:03]} 81. Kf3 {[%clk 0:00:02.9]} 81... Rb7 {[%clk
0:00:03.1]} 82. Ke3 {[%clk 0:00:03.8]} 82... Rd7 {[%clk 0:00:03]} 1/2-1/2

[Event "*** Titled Tuesday Blitz"]
[Site "Chess.com"]
[Date "2020.12.01"]
[Round "8"]
[White "alexsuper1987"]
[Black "Andro2"]
[Result "1-0"]
[WhiteElo "2325"]
[BlackElo "2375"]
[TimeControl "180+1"]
[EndTime "11:21:25 PST"]
[Termination "alexsuper1987 won by resignation"]

1. e4 {[%clk 0:02:59.6]} 1... c6 {[%clk 0:02:57.8]} 2. d4 {[%clk 0:02:58.7]}
2... d5 {[%clk 0:02:58.1]} 3. Nc3 {[%clk 0:02:58.5]} 3... dxe4 {[%clk
0:02:57.8]} 4. Nxe4 {[%clk 0:02:59.4]} 4... Bf5 {[%clk 0:02:57.7]} 5. Ng3 {[%clk
0:02:59.5]} 5... Bg6 {[%clk 0:02:58]} 6. Nh3 {[%clk 0:03:00.1]} 6... Nf6 {[%clk
0:02:56.6]} 7. Nf4 {[%clk 0:03:00]} 7... e5 {[%clk 0:02:56.9]} 8. dxe5 {[%clk
0:03:00.6]} 8... Qa5+ {[%clk 0:02:56.6]} 9. c3 {[%clk 0:02:59.7]} 9... Qxe5+
{[%clk 0:02:56.6]} 10. Be2 {[%clk 0:03:00.1]} 10... Nbd7 {[%clk 0:02:51.6]} 11.
O-O {[%clk 0:03:00.1]} 11... O-O-O {[%clk 0:02:45.1]} 12. Qa4 {[%clk 0:03:00]}
12... Bc5 {[%clk 0:02:37.6]} 13. Nxg6 {[%clk 0:02:56.4]} 13... hxg6 {[%clk
0:02:36.8]} 14. Bf4 {[%clk 0:02:57]} 14... Qe7 {[%clk 0:01:53.3]} 15. Qxc6+
{[%clk 0:02:55.6]} 1-0

[Event "*** Titled Tuesday Blitz"]
[Site "Chess.com"]
[Date "2020.12.01"]
[Round "8"]
[White "maxip32"]
[Black "emiliochess"]
[Result "0-1"]
[WhiteElo "2482"]
[BlackElo "2360"]
[TimeControl "180+1"]
[EndTime "11:22:16 PST"]
[Termination "emiliochess won by resignation"]

1. e4 {[%clk 0:03:00.9]} 1... c6 {[%clk 0:02:58.4]} 2. d4 {[%clk 0:03:00.4]}
2... d5 {[%clk 0:02:59]} 3. e5 {[%clk 0:03:01.1]} 3... Bf5 {[%clk 0:02:58.8]} 4.
h4 {[%clk 0:03:01.5]} 4... h6 {[%clk 0:02:55]} 5. g4 {[%clk 0:03:00.2]} 5... Be4
{[%clk 0:02:54.6]} 6. f3 {[%clk 0:03:00.4]} 6... Bg6 {[%clk 0:02:54.7]} 7. e6
{[%clk 0:03:01.1]} 7... Qd6 {[%clk 0:02:54.4]} 8. exf7+ {[%clk 0:02:54.7]} 8...
Bxf7 {[%clk 0:02:55.3]} 9. Ne2 {[%clk 0:02:53.1]} 9... Nd7 {[%clk 0:02:54.1]}
10. Nbc3 {[%clk 0:02:50.7]} 10... e5 {[%clk 0:02:53.2]} 11. dxe5 {[%clk
0:02:50.4]} 11... Nxe5 {[%clk 0:02:54.1]} 12. Bg2 {[%clk 0:02:50.8]} 12... O-O-O
{[%clk 0:02:51.7]} 13. Bf4 {[%clk 0:02:49.8]} 13... Re8 {[%clk 0:02:51.6]} 14.
Qd2 {[%clk 0:02:42.5]} 14... Qb4 {[%clk 0:02:41.1]} 15. O-O-O {[%clk 0:02:42.3]}
15... Nc4 {[%clk 0:02:35.9]} 0-1

[Event "*** Titled Tuesday Blitz"]
[Site "Chess.com"]
[Date "2020.12.01"]
[Round "8"]
[White "googlegoom"]
[Black "ajkom197"]
[Result "1/2-1/2"]
[WhiteElo "2446"]
[BlackElo "2335"]
[TimeControl "180+1"]
[EndTime "11:22:21 PST"]
[Termination "Game drawn by repetition"]

1. Nf3 {[%clk 0:03:00.9]} 1... d5 {[%clk 0:02:58.6]} 2. b3 {[%clk 0:02:56.6]}
2... Nf6 {[%clk 0:02:59.2]} 3. Bb2 {[%clk 0:02:56.8]} 3... Bf5 {[%clk
0:02:56.5]} 4. e3 {[%clk 0:02:57.1]} 4... e6 {[%clk 0:02:56.5]} 5. Be2 {[%clk
0:02:57.6]} 5... Nbd7 {[%clk 0:02:56.2]} 6. O-O {[%clk 0:02:58.2]} 6... Bd6
{[%clk 0:02:55.8]} 7. d4 {[%clk 0:02:58.9]} 7... O-O {[%clk 0:02:55.2]} 8. Nbd2
{[%clk 0:02:59.6]} 8... a5 {[%clk 0:02:53.7]} 9. c4 {[%clk 0:03:00.3]} 9... c6
{[%clk 0:02:53.6]} 10. a3 {[%clk 0:03:00]} 10... Qe7 {[%clk 0:02:49.9]} 11. Qc1
{[%clk 0:02:59.4]} 11... Rfe8 {[%clk 0:02:49.3]} 12. Bc3 {[%clk 0:02:59.2]}
12... h6 {[%clk 0:02:47.5]} 13. Qb2 {[%clk 0:02:58.9]} 13... Ne4 {[%clk
0:02:46.3]} 14. Nxe4 {[%clk 0:02:58.8]} 14... Bxe4 {[%clk 0:02:46.2]} 15. Nd2
{[%clk 0:02:59.7]} 15... Bh7 {[%clk 0:02:45.8]} 16. b4 {[%clk 0:02:59.4]} 16...
axb4 {[%clk 0:02:42.5]} 17. axb4 {[%clk 0:03:00.3]} 17... Nf6 {[%clk 0:02:24.6]}
18. b5 {[%clk 0:02:57.8]} 18... Ne4 {[%clk 0:02:23.8]} 19. Nxe4 {[%clk
0:02:55.7]} 19... Bxe4 {[%clk 0:02:24.7]} 20. c5 {[%clk 0:02:51.2]} 20... Bc7
{[%clk 0:02:20.6]} 21. b6 {[%clk 0:02:51]} 21... Rxa1 {[%clk 0:02:20.1]} 22.
Rxa1 {[%clk 0:02:48.4]} 22... Bb8 {[%clk 0:02:20.4]} 23. f3 {[%clk 0:02:43.9]}
23... Qh4 {[%clk 0:02:01.6]} 24. fxe4 {[%clk 0:02:33.7]} 24... Qxh2+ {[%clk
0:01:57.6]} 25. Kf1 {[%clk 0:02:33.6]} 25... Qh1+ {[%clk 0:01:55.4]} 26. Kf2
{[%clk 0:02:28.4]} 26... Qh4+ {[%clk 0:01:56.3]} 27. Kf1 {[%clk 0:02:25.5]}
27... Qh1+ {[%clk 0:01:56.5]} 28. Kf2 {[%clk 0:02:25.4]} 28... Qh4+ {[%clk
0:01:57.4]} 29. Kf1 {[%clk 0:02:24.5]} 29... Qh1+ {[%clk 0:01:57.6]} 1/2-1/2

[Event "*** Titled Tuesday Blitz"]
[Site "Chess.com"]
[Date "2020.12.01"]
[Round "8"]
[White "beto-betun"]
[Black "CakeinSpace2002"]
[Result "0-1"]
[WhiteElo "2196"]
[BlackElo "2365"]
[TimeControl "180+1"]
[EndTime "11:22:30 PST"]
[Termination "CakeinSpace2002 won by resignation"]

1. d4 {[%clk 0:03:00.9]} 1... c5 {[%clk 0:02:59.6]} 2. Nf3 {[%clk 0:02:58.7]}
2... cxd4 {[%clk 0:02:59.7]} 3. Nxd4 {[%clk 0:02:59.6]} 3... g6 {[%clk
0:02:59.6]} 4. g3 {[%clk 0:02:51.4]} 4... Bg7 {[%clk 0:03:00.5]} 5. Bg2 {[%clk
0:02:51.8]} 5... Nc6 {[%clk 0:03:01.4]} 6. Nxc6 {[%clk 0:02:45.1]} 6... bxc6
{[%clk 0:03:01.4]} 7. O-O {[%clk 0:02:45.3]} 7... Nf6 {[%clk 0:03:01.3]} 8. c4
{[%clk 0:02:44.3]} 8... O-O {[%clk 0:03:01]} 9. Nc3 {[%clk 0:02:43.9]} 9... Rb8
{[%clk 0:03:00.3]} 10. Qc2 {[%clk 0:02:37.5]} 10... Qa5 {[%clk 0:02:57.1]} 11.
Bd2 {[%clk 0:02:33.4]} 11... Qh5 {[%clk 0:02:53.1]} 12. b3 {[%clk 0:02:21.3]}
12... d5 {[%clk 0:02:52.5]} 13. cxd5 {[%clk 0:02:17.4]} 13... cxd5 {[%clk
0:02:53.4]} 14. Qd3 {[%clk 0:02:03.7]} 14... Bf5 {[%clk 0:02:50.4]} 15. Qf3
{[%clk 0:02:01.6]} 15... Bg4 {[%clk 0:02:49.9]} 16. Qd3 {[%clk 0:01:57.1]} 16...
Bh3 {[%clk 0:02:48.1]} 17. Bf3 {[%clk 0:01:55.5]} 17... Bg4 {[%clk 0:02:43.7]}
18. Bg2 {[%clk 0:01:55.1]} 18... Rfd8 {[%clk 0:02:42]} 19. Bf4 {[%clk
0:01:50.4]} 19... e5 {[%clk 0:02:41.2]} 20. Bc1 {[%clk 0:01:36.9]} 20... d4
{[%clk 0:02:38.7]} 21. Ne4 {[%clk 0:01:33.5]} 21... Bxe2 {[%clk 0:02:36.9]} 22.
Nxf6+ {[%clk 0:01:34]} 22... Bxf6 {[%clk 0:02:37.6]} 23. Qc4 {[%clk 0:01:29.2]}
23... Bxc4 {[%clk 0:02:33.9]} 0-1

[Event "*** Titled Tuesday Blitz"]
[Site "Chess.com"]
[Date "2020.12.01"]
[Round "8"]
[White "MikeSailer"]
[Black "tylityli"]
[Result "0-1"]
[WhiteElo "2153"]
[BlackElo "2325"]
[TimeControl "180+1"]
[EndTime "11:22:37 PST"]
[Termination "tylityli won by resignation"]

1. d4 {[%clk 0:03:00]} 1... Nf6 {[%clk 0:02:30.3]} 2. Nf3 {[%clk 0:02:57.7]}
2... d5 {[%clk 0:02:29.6]} 3. Bf4 {[%clk 0:02:49.9]} 3... c5 {[%clk 0:02:28.6]}
4. e3 {[%clk 0:02:49]} 4... Nc6 {[%clk 0:02:27.9]} 5. Be2 {[%clk 0:02:44.3]}
5... Qb6 {[%clk 0:02:25.1]} 6. Nc3 {[%clk 0:02:41.1]} 6... a6 {[%clk 0:02:21.7]}
7. O-O {[%clk 0:02:36.6]} 7... cxd4 {[%clk 0:02:02.3]} 8. exd4 {[%clk
0:02:36.3]} 8... Bf5 {[%clk 0:02:01.6]} 9. Rb1 {[%clk 0:02:28.5]} 9... e6 {[%clk
0:02:01]} 10. h3 {[%clk 0:02:27.3]} 10... h6 {[%clk 0:01:59.9]} 11. Re1 {[%clk
0:02:19.9]} 11... Be7 {[%clk 0:01:59.1]} 12. Ne5 {[%clk 0:02:11.1]} 12... O-O
{[%clk 0:01:55.5]} 13. Nxc6 {[%clk 0:02:09.1]} 13... bxc6 {[%clk 0:01:54.6]} 14.
Na4 {[%clk 0:02:06.3]} 14... Qa5 {[%clk 0:01:49.8]} 15. c3 {[%clk 0:02:05.2]}
15... Bxb1 {[%clk 0:01:45.8]} 16. Qxb1 {[%clk 0:02:04]} 16... Qxa4 {[%clk
0:01:44.7]} 0-1

[Event "*** Titled Tuesday Blitz"]
[Site "Chess.com"]
[Date "2020.12.01"]
[Round "8"]
[White "Dreamer_01"]
[Black "mr65"]
[Result "1-0"]
[WhiteElo "2356"]
[BlackElo "2178"]
[TimeControl "180+1"]
[EndTime "11:23:05 PST"]
[Termination "Dreamer_01 won by resignation"]

1. d4 {[%clk 0:03:00.9]} 1... Nf6 {[%clk 0:02:59.4]} 2. Nc3 {[%clk 0:02:56]}
2... d5 {[%clk 0:02:57.8]} 3. f3 {[%clk 0:02:55.4]} 3... c5 {[%clk 0:02:52]} 4.
e3 {[%clk 0:02:47.7]} 4... cxd4 {[%clk 0:02:47.6]} 5. exd4 {[%clk 0:02:47.2]}
5... Nc6 {[%clk 0:02:43]} 6. Bb5 {[%clk 0:02:45.3]} 6... a6 {[%clk 0:02:35.9]}
7. Bxc6+ {[%clk 0:02:43.9]} 7... bxc6 {[%clk 0:02:35.3]} 8. Nge2 {[%clk
0:02:43.9]} 8... Bf5 {[%clk 0:02:32.1]} 9. Be3 {[%clk 0:02:40.2]} 9... e6 {[%clk
0:02:27.6]} 10. O-O {[%clk 0:02:35.3]} 10... Bd6 {[%clk 0:02:23.3]} 11. Na4
{[%clk 0:02:32.5]} 11... O-O {[%clk 0:02:21]} 12. Bf4 {[%clk 0:02:28.4]} 12...
Rb8 {[%clk 0:02:12]} 13. b3 {[%clk 0:02:26.5]} 13... Bxf4 {[%clk 0:02:07.2]} 14.
Nxf4 {[%clk 0:02:25]} 14... Qd6 {[%clk 0:02:06.6]} 15. Nd3 {[%clk 0:02:23.8]}
15... Bxd3 {[%clk 0:02:04.4]} 16. Qxd3 {[%clk 0:02:23]} 16... Nd7 {[%clk
0:02:03.6]} 17. Qxa6 {[%clk 0:02:20.9]} 17... Rfc8 {[%clk 0:01:53.3]} 18. Kh1
{[%clk 0:02:18.9]} 18... Qa3 {[%clk 0:01:49.5]} 19. h3 {[%clk 0:02:08.5]} 19...
Ra8 {[%clk 0:01:38.8]} 20. Qe2 {[%clk 0:02:04.8]} 20... c5 {[%clk 0:01:37.9]}
21. dxc5 {[%clk 0:02:04.3]} 21... Nxc5 {[%clk 0:01:37.2]} 22. Nb6 {[%clk
0:02:03.3]} 22... Nd7 {[%clk 0:01:25.1]} 23. Nxd7 {[%clk 0:02:00.9]} 1-0

[Event "*** Titled Tuesday Blitz"]
[Site "Chess.com"]
[Date "2020.12.01"]
[Round "8"]
[White "MasterKroket"]
[Black "elohunter1999"]
[Result "0-1"]
[WhiteElo "2396"]
[BlackElo "2573"]
[TimeControl "180+1"]
[EndTime "11:23:25 PST"]
[Termination "elohunter1999 won by resignation"]

1. d4 {[%clk 0:03:00.8]} 1... Nf6 {[%clk 0:02:59.8]} 2. c4 {[%clk 0:03:01.4]}
2... Nc6 {[%clk 0:02:59.8]} 3. Nf3 {[%clk 0:03:00.6]} 3... e6 {[%clk 0:02:58.9]}
4. a3 {[%clk 0:03:00.5]} 4... d5 {[%clk 0:02:23.7]} 5. Nc3 {[%clk 0:02:57.7]}
5... Bd6 {[%clk 0:02:14]} 6. Bg5 {[%clk 0:02:55.2]} 6... Be7 {[%clk 0:02:11]} 7.
e3 {[%clk 0:02:53.8]} 7... O-O {[%clk 0:02:09.3]} 8. Rc1 {[%clk 0:02:52.8]} 8...
Ne4 {[%clk 0:02:08]} 9. Bxe7 {[%clk 0:02:51.3]} 9... Qxe7 {[%clk 0:02:07.7]} 10.
cxd5 {[%clk 0:02:50.8]} 10... Nxc3 {[%clk 0:02:07.7]} 11. Rxc3 {[%clk
0:02:51.7]} 11... exd5 {[%clk 0:02:07.6]} 12. Qc2 {[%clk 0:02:43.4]} 12... Bg4
{[%clk 0:02:05.1]} 13. Bb5 {[%clk 0:02:31.2]} 13... Bxf3 {[%clk 0:02:03.1]} 14.
gxf3 {[%clk 0:02:31.5]} 14... Nxd4 {[%clk 0:02:03.1]} 15. Qd3 {[%clk 0:02:23.7]}
15... Nxf3+ {[%clk 0:01:47.1]} 16. Ke2 {[%clk 0:02:20.4]} 16... Ne5 {[%clk
0:01:47.2]} 17. Qd4 {[%clk 0:02:10.4]} 17... c6 {[%clk 0:01:47.4]} 18. Ba4
{[%clk 0:02:09]} 18... Rfe8 {[%clk 0:01:46.2]} 19. Bc2 {[%clk 0:02:07.7]} 19...
g6 {[%clk 0:01:45.2]} 20. h4 {[%clk 0:02:07.1]} 20... h5 {[%clk 0:01:43.7]} 21.
Rg1 {[%clk 0:02:05.8]} 21... Qf6 {[%clk 0:01:36.5]} 22. Rg3 {[%clk 0:02:00.9]}
22... Re6 {[%clk 0:01:28.5]} 23. a4 {[%clk 0:01:43.3]} 23... Ng4 {[%clk
0:01:28.5]} 24. Rf3 {[%clk 0:01:40.6]} 24... Qxd4 {[%clk 0:01:28]} 0-1

[Event "*** Titled Tuesday Blitz"]
[Site "Chess.com"]
[Date "2020.12.01"]
[Round "8"]
[White "zurzan"]
[Black "Sueetin"]
[Result "0-1"]
[WhiteElo "2071"]
[BlackElo "2247"]
[TimeControl "180+1"]
[EndTime "11:23:38 PST"]
[Termination "Sueetin won by checkmate"]

1. f4 {[%clk 0:03:00.9]} 1... d5 {[%clk 0:02:56.5]} 2. Nf3 {[%clk 0:03:01]} 2...
g6 {[%clk 0:02:56.8]} 3. g3 {[%clk 0:03:01.4]} 3... Bg7 {[%clk 0:02:57]} 4. Bg2
{[%clk 0:03:02.3]} 4... Nh6 {[%clk 0:02:57.2]} 5. O-O {[%clk 0:03:03.2]} 5...
O-O {[%clk 0:02:57.5]} 6. d3 {[%clk 0:03:04.1]} 6... c5 {[%clk 0:02:48.9]} 7. c3
{[%clk 0:03:05]} 7... Nc6 {[%clk 0:02:48.8]} 8. Qc2 {[%clk 0:03:05]} 8... d4
{[%clk 0:02:41.5]} 9. h3 {[%clk 0:03:01.8]} 9... Nf5 {[%clk 0:02:40.9]} 10. Kh2
{[%clk 0:03:00]} 10... e5 {[%clk 0:02:34.4]} 11. g4 {[%clk 0:02:58.8]} 11... Nh4
{[%clk 0:02:28.2]} 12. e4 {[%clk 0:02:48.9]} 12... dxe3 {[%clk 0:02:15.5]} 13.
Bxe3 {[%clk 0:02:48.3]} 13... Nxg2 {[%clk 0:02:10.9]} 14. Kxg2 {[%clk
0:02:47.6]} 14... exf4 {[%clk 0:01:59.9]} 15. Bxf4 {[%clk 0:02:47]} 15... h5
{[%clk 0:01:56.3]} 16. gxh5 {[%clk 0:02:35]} 16... Bf5 {[%clk 0:01:54.4]} 17.
Rd1 {[%clk 0:02:25.2]} 17... Qd7 {[%clk 0:01:40.6]} 18. Ng1 {[%clk 0:02:23.7]}
18... Ne5 {[%clk 0:01:26.5]} 19. Bxe5 {[%clk 0:01:56]} 19... Bxe5 {[%clk
0:01:15.7]} 20. Na3 {[%clk 0:01:53.4]} 20... Qd5+ {[%clk 0:01:07.1]} 21. Nf3
{[%clk 0:01:52.5]} 21... Bxh3+ {[%clk 0:01:06.2]} 22. Kxh3 {[%clk 0:01:52.6]}
22... Qxf3+ {[%clk 0:01:05]} 23. Kh4 {[%clk 0:01:52.4]} 23... Bf6# {[%clk
0:01:00.1]} 0-1

[Event "*** Titled Tuesday Blitz"]
[Site "Chess.com"]
[Date "2020.12.01"]
[Round "8"]
[White "dopolian"]
[Black "c_r_e_e_p_e_r"]
[Result "1-0"]
[WhiteElo "2430"]
[BlackElo "2301"]
[TimeControl "180+1"]
[EndTime "11:24:03 PST"]
[Termination "dopolian won by checkmate"]

1. Nf3 {[%clk 0:03:00.9]} 1... d6 {[%clk 0:02:58.7]} 2. d4 {[%clk 0:03:00.5]}
2... g6 {[%clk 0:02:58.6]} 3. e4 {[%clk 0:02:59]} 3... Bg7 {[%clk 0:02:58.8]} 4.
c3 {[%clk 0:02:55.5]} 4... Nd7 {[%clk 0:02:58.7]} 5. Be2 {[%clk 0:02:53.8]} 5...
e5 {[%clk 0:02:58.5]} 6. Be3 {[%clk 0:02:54]} 6... Ne7 {[%clk 0:02:58.7]} 7. O-O
{[%clk 0:02:53.3]} 7... O-O {[%clk 0:02:59]} 8. Nbd2 {[%clk 0:02:51.3]} 8... h6
{[%clk 0:02:59.1]} 9. Qc2 {[%clk 0:02:48.8]} 9... f5 {[%clk 0:02:58.9]} 10. exf5
{[%clk 0:02:48.8]} 10... gxf5 {[%clk 0:02:59.8]} 11. dxe5 {[%clk 0:02:48.3]}
11... dxe5 {[%clk 0:02:59.2]} 12. Nh4 {[%clk 0:02:32.1]} 12... f4 {[%clk
0:02:54.7]} 13. Bc4+ {[%clk 0:02:29.4]} 13... Kh8 {[%clk 0:02:51.9]} 14. Ne4
{[%clk 0:02:12.6]} 14... fxe3 {[%clk 0:02:42.1]} 15. fxe3 {[%clk 0:02:06.2]}
15... Nb6 {[%clk 0:02:40.9]} 16. Rxf8+ {[%clk 0:02:02.1]} 16... Qxf8 {[%clk
0:02:36.5]} 17. Rf1 {[%clk 0:02:00.7]} 17... Qe8 {[%clk 0:02:31.8]} 18. Bf7
{[%clk 0:01:59.8]} 18... Qc6 {[%clk 0:02:27.3]} 19. Rf3 {[%clk 0:01:16.6]} 19...
Be6 {[%clk 0:02:22.8]} 20. Ng5 {[%clk 0:00:41.5]} 20... hxg5 {[%clk 0:02:13.9]}
21. Ng6+ {[%clk 0:00:41.6]} 21... Nxg6 {[%clk 0:02:05]} 22. Qxg6 {[%clk
0:00:42.5]} 22... g4 {[%clk 0:01:45.4]} 23. Qh5+ {[%clk 0:00:38.2]} 23... Bh6
{[%clk 0:01:43.9]} 24. Qxh6# {[%clk 0:00:39.1]} 1-0

[Event "*** Titled Tuesday Blitz"]
[Site "Chess.com"]
[Date "2020.12.01"]
[Round "8"]
[White "DrVelja"]
[Black "GigaQuparadze"]
[Result "0-1"]
[WhiteElo "2801"]
[BlackElo "2921"]
[TimeControl "180+1"]
[EndTime "11:24:14 PST"]
[Termination "GigaQuparadze won by resignation"]

1. e4 {[%clk 0:03:00.9]} 1... c5 {[%clk 0:02:59.4]} 2. Nf3 {[%clk 0:03:01.5]}
2... e6 {[%clk 0:02:58.8]} 3. d4 {[%clk 0:03:02]} 3... cxd4 {[%clk 0:02:59.7]}
4. Nxd4 {[%clk 0:03:02.9]} 4... a6 {[%clk 0:03:00]} 5. c4 {[%clk 0:03:03.2]}
5... Nf6 {[%clk 0:03:00]} 6. Nc3 {[%clk 0:03:03.6]} 6... Bb4 {[%clk 0:02:59.5]}
7. Qd3 {[%clk 0:03:01.8]} 7... O-O {[%clk 0:02:58.1]} 8. e5 {[%clk 0:03:00.4]}
8... Ne8 {[%clk 0:02:58.1]} 9. Bf4 {[%clk 0:02:54.9]} 9... d6 {[%clk 0:02:57.9]}
10. exd6 {[%clk 0:02:53.9]} 10... Nxd6 {[%clk 0:02:54.3]} 11. O-O-O {[%clk
0:02:29]} 11... Qf6 {[%clk 0:02:52.9]} 12. Bxd6 {[%clk 0:02:11.3]} 12... Bxd6
{[%clk 0:02:52.2]} 13. Ne4 {[%clk 0:02:12.2]} 13... Qh6+ {[%clk 0:02:51.8]} 14.
Kb1 {[%clk 0:02:12.6]} 14... Be7 {[%clk 0:02:51.4]} 15. Qg3 {[%clk 0:01:57.5]}
15... Nd7 {[%clk 0:02:37.6]} 16. Bd3 {[%clk 0:01:54.5]} 16... Nc5 {[%clk
0:02:37.6]} 17. Nxc5 {[%clk 0:01:49.8]} 17... Bxc5 {[%clk 0:02:38.5]} 18. Nf3
{[%clk 0:01:49.8]} 18... b5 {[%clk 0:02:35.9]} 19. Ng5 {[%clk 0:01:40.9]} 19...
f5 {[%clk 0:02:35.2]} 20. h4 {[%clk 0:01:36]} 20... Qf6 {[%clk 0:02:23.6]} 21.
Rhe1 {[%clk 0:00:59.5]} 21... h6 {[%clk 0:02:21.5]} 22. Nh3 {[%clk 0:00:55.3]}
22... f4 {[%clk 0:02:18.1]} 23. Qf3 {[%clk 0:00:53.6]} 23... Rb8 {[%clk
0:02:18]} 24. Qe4 {[%clk 0:00:52.5]} 24... bxc4 {[%clk 0:02:17.7]} 25. Qh7+
{[%clk 0:00:43.5]} 25... Kf7 {[%clk 0:02:16.2]} 0-1